bitfinex-derivatives/quotes_SOLF0:USTF0_20250623
["timestamp","ask_amount","ask_price","bid_price","bid_amount"]
[1750709099306,40.42,139.44,139.37,2.4442]
[1750709100501,47.5865,139.44,139.37,2.4442]
[1750709100708,619.92,139.47,139.38,20.06581059]
[1750709100911,40.42,139.48,139.4,20.06581059]
[1750709101109,40.42,139.48,139.41,4.7073]
[1750709101607,40.42,139.51,139.42,20.06581059]
[1750709101907,40.42,139.51,139.44,20.06581059]
[1750709102203,20.06581059,139.5,139.41,4.7073]
[1750709102610,40.42,139.51,139.41,24.77311059]
[1750709102805,40.42,139.51,139.43,20.06581059]
[1750709103010,660.06,139.54,139.45,20.06581059]
[1750709103203,660.06,139.54,139.48,7.1638]
[1750709103406,660.06,139.54,139.45,20.06581059]
[1750709103701,660.06,139.54,139.47,20.06581059]
[1750709104012,660.06,139.54,139.48,2.3634]
[1750709104603,667.2215,139.54,139.5,7.1628]
[1750709104805,667.2215,139.54,139.48,2.3634]
[1750709105008,40.4,139.54,139.49,20.06581059]
[1750709105209,7.1604,139.56,139.52,7.1616]
[1750709105512,40.4,139.57,139.49,22.46581059]
[1750709106014,7.1605,139.55,139.52,7.1617]
[1750709106214,40.4,139.57,139.49,22.46581059]
[1750709107108,40.4,139.57,139.51,20.06581059]
[1750709108211,40.4,139.57,139.53,7.1613]
[1750709108511,40.4,139.57,139.51,20.06581059]
[1750709108712,47.5597,139.57,139.51,20.06581059]
[1750709108915,40.4,139.57,139.51,20.06581059]
[1750709109112,40.4,139.57,139.52,2.2412]
[1750709109617,7.1603,139.56,139.53,7.1614]
[1750709109914,40.4,139.57,139.52,2.2412]
[1750709110117,47.5599,139.57,139.54,7.1606]
[1750709110316,40.76,139.6,139.52,2.2412]
[1750709110516,60.82581059,139.6,139.52,2.2412]
[1750709111508,40.76,139.6,139.52,2.2412]
[1750709112215,52.25095745,139.6,139.52,2.2412]
[1750709112411,11.49095745,139.58,139.49,2.4]
[1750709112617,7.1606,139.55,139.52,7.1617]
[1750709113315,11.49095745,139.58,139.49,2.4]
[1750709113610,11.49637436,139.56,139.49,2.4]
[1750709113813,40.74,139.55,139.49,2.4]
[1750709114013,7.1618,139.53,139.5,7.1628]
[1750709114414,7.1621,139.52,139.49,9.5634]
[1750709115014,40.74,139.55,139.44,11.50023318]
[1750709115015,11.50023318,139.54,139.44,11.50023318]
[1750709115308,11.50023318,139.52,139.44,11.50023318]
[1750709115517,7.1633,139.5,139.47,7.1643]
[1750709116017,7.1639,139.49,139.46,7.1649]
[1750709116215,7.1639,139.49,139.44,16.23553318]
[1750709116814,7.1639,139.49,139.46,7.1649]
[1750709117007,11.50023318,139.5,139.43,2.4073]
[1750709117315,11.50023318,139.48,139.39,4.7353]
[1750709117515,11.50023318,139.46,139.39,4.7353]
[1750709117712,40.74,139.45,139.39,2.363]
[1750709117909,40.74,139.45,139.39,9.5313]
[1750709118316,7.1672,139.42,139.39,9.5313]
[1750709118521,11.50023318,139.44,139.37,2.3957]
[1750709118722,40.74,139.45,139.34,40.74]
[1750709118723,7.1679,139.41,139.34,43.1853]
[1750709119027,40.74,139.41,139.35,11.50023318]
[1750709123320,52.24023318,139.41,139.34,57.831]
[1750709123527,40.74,139.41,139.34,69.33123318]
[1750709123728,40.74,139.41,139.39,7.1683]
[1750709124129,52.26023318,139.44,139.4,7.1682]
[1750709124328,52.26023318,139.44,139.36,11.50023318]
[1750709124626,7.1686,139.4,139.36,7.17]
[1750709125022,52.26023318,139.44,139.34,69.33123318]
[1750709125225,52.26023318,139.44,139.38,7.1689]
[1750709125423,52.26023318,139.44,139.34,69.33123318]
[1750709125831,7.1684,139.4,139.37,7.1695]
[1750709126334,11.50023318,139.42,139.34,69.33123318]
[1750709126834,7.169,139.39,139.34,69.33123318]
[1750709127035,40.76,139.4,139.34,69.33123318]
[1750709127528,7.169,139.39,139.36,7.1699]
[1750709128336,7.169,139.39,139.35,7.1705]
[1750709128634,7.169,139.39,139.34,69.33123318]
[1750709128635,7.169,139.39,139.34,57.831]
[1750709129024,7.169,139.39,139.36,7.1699]
[1750709129536,40.76,139.4,139.35,11.52064951]
[1750709130740,40.76,139.4,139.38,7.169]
[1750709130939,40.76,139.45,139.37,11.52064951]
[1750709131531,11.52064951,139.43,139.35,11.52064951]
[1750709131845,7.1683,139.4,139.37,7.1695]
[1750709132745,11.52064951,139.44,139.38,7.1689]
[1750709132937,11.52064951,139.44,139.35,11.52064951]
[1750709133443,11.52064951,139.42,139.34,57.831]
[1750709133741,40.78,139.41,139.34,57.831]
[1750709133941,7.1689,139.39,139.36,7.1702]
[1750709134137,7.1689,139.39,139.34,57.831]
[1750709134339,7.1689,139.39,139.34,45.581]
[1750709135533,7.1684,139.4,139.34,45.581]
[1750709135736,40.78,139.41,139.34,45.581]
[1750709135932,7.1687,139.4,139.34,45.581]
[1750709136132,40.78,139.41,139.36,7.1698]
[1750709136346,40.78,139.41,139.34,45.581]
[1750709136540,7.169,139.39,139.34,45.581]
[1750709136948,7.169,139.39,139.36,7.1699]
[1750709137152,7.169,139.39,139.34,45.581]
[1750709137447,40.78,139.41,139.37,7.1694]
[1750709137944,7.1685,139.4,139.37,7.1694]
[1750709138143,40.78,139.41,139.34,45.581]
[1750709138447,7.1683,139.4,139.35,11.52064951]
[1750709138952,7.1683,139.4,139.38,7.169]
[1750709139537,47.948,139.41,139.39,7.1686]
[1750709139744,40.78,139.41,139.39,7.1686]
[1750709139952,40.78,139.41,139.35,11.52064951]
[1750709141650,40.78,139.41,139.35,11.51649674]
[1750709142450,47.9479,139.41,139.39,7.1685]
[1750709142637,40.78,139.41,139.35,11.51649674]
[1750709142837,7.169,139.39,139.36,7.1698]
[1750709143039,40.78,139.41,139.34,45.581]
[1750709143243,40.78,139.41,139.35,11.51649674]
[1750709143540,47.948,139.41,139.35,11.51649674]
[1750709143851,40.78,139.41,139.35,11.51649674]
[1750709144253,7.1682,139.4,139.38,7.169]
[1750709144852,47.9479,139.41,139.39,7.1687]
[1750709146050,40.78,139.41,139.4,7.1682]
[1750709147640,7.1683,139.4,139.38,7.1692]
[1750709149047,40.78,139.41,139.35,11.51649674]
[1750709149745,52.29649674,139.41,139.33,158.67]
[1750709149951,11.51649674,139.39,139.33,12.25]
[1750709150254,52.29649674,139.41,139.36,7.17]
[1750709151252,7.169,139.39,139.33,12.25]
[1750709151955,7.169,139.39,139.36,7.1699]
[1750709152352,7.1694,139.38,139.36,7.1699]
[1750709153545,11.52351432,139.4,139.33,12.25]
[1750709153746,11.52351432,139.38,139.33,12.25]
[1750709154049,40.42,139.37,139.33,12.25]
[1750709154552,7.171,139.35,139.33,12.25]
[1750709154952,40.42,139.37,139.33,19.4215]
[1750709155154,40.42,139.37,139.33,12.25]
[1750709155351,11.52771859,139.36,139.33,12.25]
[1750709155747,40.42,139.37,139.33,12.25]
[1750709156054,7.1692,139.39,139.36,7.1701]
[1750709156245,40.42,139.4,139.36,7.1701]
[1750709156840,7.1688,139.39,139.36,7.1701]
[1750709157352,40.42,139.4,139.37,7.1695]
[1750709157556,40.42,139.4,139.33,23.77771859]
[1750709157758,40.42,139.4,139.35,11.52771859]
[1750709158056,40.42,139.4,139.38,7.1689]
[1750709158355,40.42,139.4,139.33,59.25104341]
[1750709158356,40.42,139.4,139.34,6.58104341]
[1750709158653,47.5884,139.4,139.34,18.108762]
[1750709158858,40.42,139.4,139.34,18.108762]
[1750709159047,40.42,139.4,139.35,4.6842]
[1750709159355,40.42,139.4,139.35,11.26524341]
[1750709159749,6.63153668,139.48,139.36,11.52771859]
[1750709159955,7.1672,139.43,139.4,7.1679]
[1750709160249,7.1672,139.43,139.37,47.00104341]
[1750709160250,11.52771859,139.43,139.37,6.58104341]
[1750709160455,7.168,139.41,139.38,7.1692]
[1750709160649,7.168,139.41,139.36,9.01864341]
[1750709160846,11.52771859,139.43,139.36,9.01864341]
[1750709161045,51.94771859,139.45,139.36,9.01864341]
[1750709161358,5.02854094,139.44,139.36,9.01864341]
[1750709161749,5.02853792,139.44,139.36,9.01864341]
[1750709161946,40.42,139.45,139.37,18.108762]
[1750709162152,8.86972427,139.49,139.43,11.52771859]
[1750709162153,40.42,139.49,139.43,11.52771859]
[1750709162460,40.42,139.49,139.48,7.1641]
[1750709162658,40.42,139.49,139.42,40.42]
[1750709162659,40.42,139.52,139.47,11.52771859]
[1750709163453,40.42,139.55,139.53,7.1615]
[1750709163759,40.42,139.55,139.48,6.58104341]
[1750709164054,40.42,139.55,139.51,7.1623]
[1750709164653,40.42,139.55,139.52,7.1618]
[1750709164849,40.42,139.55,139.51,11.52771859]
[1750709165051,659.92,139.58,139.51,11.52771859]
[1750709165456,7.1598,139.57,139.53,7.161]
[1750709165656,659.92,139.58,139.51,11.52771859]
[1750709165858,671.44771859,139.58,139.49,18.108762]
[1750709166164,671.44771859,139.58,139.51,11.52771859]
[1750709166557,7.1598,139.57,139.53,7.1615]
[1750709167060,7.1598,139.57,139.54,7.161]
[1750709167364,671.44771859,139.58,139.53,12.22]
[1750709167954,667.0792,139.58,139.53,12.22]
[1750709168456,667.0792,139.58,139.54,7.1608]
[1750709168656,667.0792,139.58,139.53,12.22]
[1750709169763,667.0792,139.58,139.55,7.1605]
[1750709170351,667.0792,139.58,139.54,7.1608]
[1750709170761,671.44771859,139.58,139.53,12.22]
[1750709170957,659.92,139.58,139.53,12.22]
[1750709171355,659.92,139.58,139.53,19.3812]
[1750709171563,659.92,139.58,139.53,12.22]
[1750709172568,7.1598,139.57,139.54,7.161]
[1750709172762,659.92,139.58,139.53,12.22]
[1750709174466,659.92,139.58,139.53,19.3813]
[1750709175069,11.49533135,139.55,139.53,12.22]
[1750709175369,18.65493135,139.57,139.53,12.22]
[1750709175568,18.65493135,139.57,139.54,7.1608]
[1750709175969,7.16,139.56,139.54,7.1608]
[1750709176669,7.16,139.56,139.53,19.3813]
[1750709176870,14.70223394,139.57,139.53,12.22]
[1750709177071,7.54253394,139.57,139.53,12.22]
[1750709177268,7.54253394,139.57,139.54,7.161]
[1750709177571,659.92,139.58,139.53,12.22]
[1750709177873,659.92,139.58,139.54,7.1607]
[1750709178274,7.54253394,139.57,139.53,12.22]
[1750709179173,14.70233394,139.57,139.54,7.161]
[1750709179473,14.70233394,139.57,139.53,12.22]
[1750709180278,667.0792,139.58,139.55,7.1605]
[1750709180464,674.62173394,139.58,139.55,7.1605]
[1750709180665,55.12173394,139.58,139.55,7.1605]
[1750709181277,7.1595,139.57,139.54,7.1608]
[1750709181869,7.1601,139.56,139.53,7.1613]
[1750709182468,14.70263394,139.56,139.53,7.1613]
[1750709182775,14.70263394,139.56,139.54,7.161]
[1750709184373,7.54154166,139.64,139.55,7.54154166]
[1750709184976,7.1572,139.62,139.59,7.1582]
[1750709185668,7.54154166,139.6,139.56,12.22]
[1750709185868,7.54154166,139.58,139.56,12.22]
[1750709186172,47.90154166,139.58,139.56,19.38]
[1750709186772,55.06064166,139.58,139.56,19.38]
[1750709187365,7.1595,139.57,139.56,12.22]
[1750709188664,55.44308332,139.58,139.51,11.9314]
[1750709188871,14.70304166,139.54,139.51,7.1621]
[1750709189171,7.54154166,139.52,139.49,7.1633]
[1750709189369,7.54154166,139.52,139.47,4.5344]
[1750709189677,7.54154166,139.52,139.49,7.1635]
[1750709189875,7.54154166,139.52,139.47,4.5344]
[1750709191070,40.34,139.54,139.47,12.07594166]
[1750709191373,47.5011,139.54,139.51,7.1621]
[1750709191772,47.5011,139.54,139.47,12.07594166]
[1750709191968,40.34,139.54,139.47,12.07594166]
[1750709192177,7.54154166,139.53,139.47,4.5344]
[1750709192472,40.34,139.54,139.45,7.1652]
[1750709192473,7.1641,139.48,139.45,7.1652]
[1750709192673,47.90154166,139.49,139.42,12.29154166]
[1750709193063,47.90154166,139.49,139.46,7.1649]
[1750709193272,47.90154166,139.49,139.42,12.29154166]
[1750709193669,7.1644,139.48,139.45,7.1654]
[1750709194070,47.90154166,139.49,139.42,12.29154166]
[1750709194269,55.06544166,139.49,139.46,7.1651]
[1750709194480,47.90154166,139.49,139.46,7.1651]
[1750709194779,40.36,139.49,139.46,7.1651]
[1750709195678,7.1641,139.48,139.46,7.1651]
[1750709197271,47.5239,139.49,139.46,7.1651]
[1750709197667,748.389,139.57,139.44,40.36]
[1750709197668,40.36,139.53,139.44,40.36]
[1750709197868,40.36,139.52,139.44,40.36]
[1750709198071,40.36,139.53,139.44,40.36]
[1750709198680,40.36,139.56,139.53,7.1614]
[1750709198879,40.36,139.56,139.48,40.36]
[1750709199182,40.36,139.56,139.49,7.302]
[1750709200980,47.52,139.56,139.53,7.1611]
[1750709201283,47.52,139.56,139.49,7.302]
[1750709202084,40.36,139.56,139.49,7.302]
[1750709202481,40.36,139.56,139.54,7.1609]
[1750709203179,40.36,139.56,139.55,7.1605]
[1750709203384,40.36,139.56,139.49,7.302]
[1750709204186,40.36,139.56,139.55,7.1605]
[1750709204977,40.3,139.59,139.58,7.1588]
[1750709205983,40.3,139.62,139.6,7.1578]
[1750709206181,40.3,139.62,139.53,6.58104341]
[1750709206382,40.3,139.62,139.6,7.1576]
[1750709206771,40.3,139.62,139.54,6.58104341]
[1750709207186,40.3,139.62,139.55,7.0161]
[1750709207571,618.9,139.64,139.55,13.59714341]
[1750709207775,618.9,139.64,139.56,46.88104341]
[1750709207977,40.3,139.65,139.64,7.1559]
[1750709208892,618.88,139.71,139.58,6.58104341]
[1750709208893,659.16,139.71,139.61,40.28]
[1750709209184,659.16,139.71,139.62,7.0756]
[1750709209780,659.16,139.71,139.69,7.1531]
[1750709209978,659.16,139.71,139.62,7.0756]
[1750709210284,666.3126,139.71,139.62,7.0756]
[1750709210587,659.16,139.71,139.62,7.0756]
[1750709210786,666.3125,139.71,139.62,7.0756]
[1750709211290,40.28,139.71,139.62,7.0756]
[1750709211485,40.28,139.71,139.62,13.65664341]
[1750709211785,40.28,139.71,139.69,7.153]
[1750709211988,40.28,139.71,139.65,40.28]
[1750709212879,40.28,139.74,139.65,40.28]
[1750709213185,40.28,139.74,139.72,7.1515]
[1750709213581,40.28,139.74,139.65,40.28]
[1750709214087,40.26,139.77,139.65,40.28]
[1750709214384,7.1507,139.75,139.71,7.1518]
[1750709214586,40.26,139.77,139.65,40.28]
[1750709215487,40.26,139.77,139.7,7.1525]
[1750709215689,40.26,139.77,139.65,40.28]
[1750709216990,40.26,139.77,139.71,7.1519]
[1750709217180,40.26,139.77,139.65,40.28]
[1750709218083,7.1501,139.76,139.72,7.1515]
[1750709218478,40.26,139.77,139.65,40.28]
[1750709218680,40.26,139.77,139.73,7.151]
[1750709218681,47.4096,139.77,139.73,7.151]
[1750709219191,40.26,139.77,139.69,40.26]
[1750709219492,40.26,139.77,139.7,6.9709]
[1750709220585,40.26,139.77,139.63,40.26]
[1750709220789,7.1539,139.68,139.63,4.7388]
[1750709221092,40.26,139.68,139.57,40.26]
[1750709221280,7.1573,139.62,139.59,7.1581]
[1750709221482,40.26,139.63,139.57,4.7085]
[1750709221786,40.26,139.62,139.54,40.26]
[1750709221984,40.26,139.61,139.54,40.26]
[1750709223985,40.26,139.61,139.59,7.1583]
[1750709224187,40.26,139.61,139.54,40.26]
[1750709226392,40.26,139.61,139.59,7.1581]
[1750709227595,40.26,139.61,139.6,7.158]
[1750709232798,40.18,139.64,139.54,116.582]
[1750709234091,40.18,139.64,139.63,7.1564]
[1750709234795,40.18,139.67,139.58,40.18]
[1750709235004,40.18,139.67,139.59,47.1785]
[1750709235212,40.18,139.67,139.59,4.7203]
[1750709235690,7.1556,139.65,139.59,4.7203]
[1750709236205,7.1556,139.65,139.62,7.1569]
[1750709236907,7.1551,139.66,139.63,7.1563]
[1750709238001,7.1555,139.65,139.63,7.1563]
[1750709238301,7.1555,139.65,139.62,7.1568]
[1750709239593,7.156,139.64,139.62,7.1568]
[1750709240103,40.18,139.67,139.62,7.1568]
[1750709240404,7.1557,139.65,139.62,7.1568]
[1750709240797,40.18,139.67,139.63,7.1562]
[1750709241003,7.1556,139.65,139.59,4.7203]
[1750709241300,40.18,139.67,139.63,7.1561]
[1750709241801,40.18,139.67,139.59,4.7203]
[1750709241802,7.1552,139.66,139.59,4.7203]
[1750709242000,40.18,139.67,139.59,4.7203]
[1750709243708,47.3348,139.67,139.64,7.1556]
[1750709245305,40.18,139.67,139.59,44.9003]
[1750709245903,40.18,139.67,139.65,7.155]
[1750709246908,47.3346,139.67,139.65,7.155]
[1750709247405,40.18,139.67,139.66,7.1549]
[1750709248907,47.3345,139.67,139.65,7.1551]
[1750709249410,40.18,139.7,139.69,7.1533]
[1750709250697,40.18,139.7,139.65,2.3128]
[1750709251907,40.18,139.7,139.69,7.1533]
[1750709252811,40.18,139.7,139.68,7.1536]
[1750709253114,47.3331,139.7,139.65,2.3128]
[1750709253499,7.1535,139.69,139.67,7.154]
[1750709253804,40.18,139.7,139.6,46.71509869]
[1750709254007,40.18,139.7,139.66,7.1546]
[1750709254209,7.1539,139.68,139.66,7.1546]
[1750709254408,40.18,139.7,139.6,45.0348]
[1750709254595,7.1541,139.68,139.6,45.0348]
[1750709254800,7.1541,139.68,139.6,51.56989869]
[1750709255805,7.1545,139.67,139.6,51.56989869]
[1750709256110,40.18,139.66,139.6,45.0348]
[1750709256403,40.18,139.66,139.63,7.1562]
[1750709256404,7.1555,139.65,139.63,7.1562]
[1750709256604,40.18,139.66,139.6,2.4263]
[1750709257509,7.1554,139.65,139.63,7.1562]
[1750709257702,40.18,139.66,139.63,7.1562]
[1750709258107,40.18,139.66,139.6,2.4263]
[1750709258405,40.18,139.7,139.61,40.18]
[1750709258610,40.18,139.7,139.69,7.1534]
[1750709258816,40.18,139.7,139.62,2.2483]
[1750709259206,7.1536,139.69,139.62,2.2483]
[1750709259406,40.18,139.7,139.62,2.2483]
[1750709259711,7.1542,139.68,139.65,7.155]
[1750709260411,7.1542,139.68,139.66,7.1548]
[1750709260809,7.1536,139.69,139.66,7.1548]
[1750709261009,40.18,139.7,139.66,7.1548]
[1750709261210,7.1546,139.67,139.62,2.2483]
[1750709261415,7.1546,139.67,139.6,2.4263]
[1750709262415,7.1541,139.68,139.6,9.01890387]
[1750709262605,7.1541,139.68,139.6,2.4263]
[1750709263104,7.1541,139.68,139.6,9.01890387]
[1750709263804,7.1541,139.68,139.66,7.1548]
[1750709264003,40.18,139.7,139.6,23.33450387]
[1750709264211,40.18,139.7,139.68,7.1536]
[1750709264509,101.0,139.72,139.63,14.3129]
[1750709264714,40.06,139.73,139.7,7.1524]
[1750709265313,47.2115,139.73,139.71,7.1522]
[1750709265512,40.06,139.73,139.66,2.3816]
[1750709265906,40.06,139.73,139.72,7.1518]
[1750709267012,618.4,139.76,139.67,6.59260387]
[1750709267013,658.46,139.76,139.67,6.59260387]
[1750709268108,658.46,139.76,139.73,7.1511]
[1750709268513,658.46,139.76,139.67,6.59260387]
[1750709268715,665.61,139.76,139.67,6.59260387]
[1750709269418,665.61,139.76,139.73,7.1508]
[1750709269720,658.46,139.76,139.66,118.7508]
[1750709269910,658.46,139.76,139.67,14.3087]
[1750709270318,40.06,139.76,139.74,7.1505]
[1750709270820,40.06,139.76,139.75,7.1503]
[1750709271611,40.06,139.76,139.74,7.1505]
[1750709272121,40.06,139.76,139.75,7.1503]
[1750709272419,618.22,139.82,139.74,40.06]
[1750709272626,618.22,139.82,139.73,40.06]
[1750709273513,618.22,139.82,139.74,4.8194]
[1750709273913,7.1474,139.81,139.78,7.1485]
[1750709274414,625.367,139.82,139.79,7.1479]
[1750709274813,618.22,139.82,139.74,4.8194]
[1750709275218,40.06,139.83,139.74,4.8194]
[1750709275822,40.06,139.83,139.81,7.1468]
[1750709276024,40.06,139.83,139.74,4.8194]
[1750709276922,40.06,139.83,139.8,7.1473]
[1750709277220,40.06,139.83,139.74,4.8194]
[1750709277729,40.06,139.83,139.8,7.1473]
[1750709277913,40.06,139.83,139.74,4.8194]
[1750709278615,40.06,139.83,139.82,7.1467]
[1750709278824,40.06,139.83,139.74,4.8194]
[1750709279724,40.06,139.83,139.81,7.1471]
[1750709280218,40.06,139.83,139.82,7.1467]
[1750709280612,40.04,139.86,139.77,40.04]
[1750709280923,40.04,139.86,139.78,2.2953]
[1750709281112,40.04,139.86,139.74,4.8194]
[1750709281316,145.46,139.85,139.71,40.04]
[1750709281718,145.46,139.85,139.69,4.8077]
[1750709282214,145.46,139.85,139.74,7.1505]
[1750709282413,145.46,139.85,139.69,4.8077]
[1750709282824,145.46,139.85,139.75,7.15]
[1750709282825,7.1491,139.78,139.75,7.15]
[1750709283022,40.04,139.77,139.75,7.15]
[1750709283512,40.04,139.77,139.76,7.1498]
[1750709283716,40.04,139.77,139.69,4.8077]
[1750709283929,47.1899,139.77,139.69,4.8077]
[1750709284125,40.04,139.77,139.69,4.8077]
[1750709285023,40.04,139.77,139.75,7.1509]
[1750709285426,40.04,139.77,139.74,7.1513]
[1750709285620,40.04,139.77,139.69,4.8077]
[1750709286427,40.04,139.77,139.75,7.1507]
[1750709286629,40.04,139.77,139.69,4.8077]
[1750709287128,40.04,139.8,139.69,4.8077]
[1750709287830,40.04,139.8,139.7,14.3073]
[1750709288126,40.04,139.8,139.71,14.3063]
[1750709288332,40.04,139.8,139.72,42.4436]
[1750709288633,40.04,139.8,139.79,7.1491]
[1750709291442,40.04,139.8,139.78,7.1495]
[1750709292229,40.04,139.8,139.72,42.4436]
[1750709292532,40.04,139.8,139.72,40.04]
[1750709292730,7.1496,139.79,139.72,40.04]
[1750709292932,40.04,139.8,139.75,7.1507]
[1750709293132,40.04,139.8,139.72,40.04]
[1750709293523,40.04,139.8,139.78,7.1493]
[1750709293723,40.04,139.8,139.72,40.04]
[1750709294130,40.04,139.8,139.77,7.1497]
[1750709294332,40.04,139.8,139.72,40.04]
[1750709294733,40.04,139.8,139.78,7.1494]
[1750709295123,40.04,139.8,139.72,40.04]
[1750709295329,40.04,139.8,139.7,54.2269]
[1750709295530,7.1497,139.78,139.76,7.1503]
[1750709295934,40.04,139.8,139.7,54.2269]
[1750709296134,7.1494,139.79,139.7,54.2269]
[1750709296435,40.04,139.8,139.71,14.3061]
[1750709296635,40.04,139.8,139.79,7.1491]
[1750709298942,39.92,139.83,139.82,7.1472]
[1750709299234,39.92,139.84,139.83,7.1471]
[1750709299438,39.92,139.84,139.75,7.061]
[1750709299439,39.92,139.86,139.75,7.061]
[1750709299824,39.92,139.86,139.84,7.1462]
[1750709300229,39.92,139.86,139.77,14.3003]
[1750709300437,39.92,139.86,139.84,7.1463]
[1750709300626,39.92,139.88,139.79,54.2179]
[1750709301039,39.92,139.88,139.79,39.92]
[1750709301440,7.1453,139.87,139.79,39.92]
[1750709301826,39.92,139.88,139.79,39.92]
[1750709302041,7.1456,139.86,139.83,7.1468]
[1750709302239,39.92,139.88,139.79,39.92]
[1750709303036,7.1456,139.86,139.83,7.1467]
[1750709303744,39.92,139.88,139.77,145.34]
[1750709304337,39.92,139.88,139.81,7.148]
[1750709304537,39.92,139.88,139.77,145.34]
[1750709304735,7.1461,139.85,139.77,145.34]
[1750709304944,7.168,139.87,139.83,7.147]
[1750709305142,7.1454,139.87,139.77,145.34]
[1750709305342,39.92,139.88,139.77,145.34]
[1750709305542,39.92,139.88,139.83,7.1468]
[1750709305842,7.1458,139.86,139.83,7.1468]
[1750709306043,39.92,139.88,139.85,7.146]
[1750709306339,618.04,139.89,139.77,145.34]
[1750709306541,39.92,139.87,139.77,145.34]
[1750709306738,39.92,139.87,139.86,7.1454]
[1750709308633,39.92,139.87,139.81,6.9225]
[1750709308634,39.92,139.9,139.88,7.1445]
[1750709309233,617.6,139.96,139.81,6.9225]
[1750709309442,39.92,139.93,139.82,14.2951]
[1750709310644,39.92,139.93,139.81,6.9225]
[1750709310848,39.92,139.93,139.88,7.1441]
[1750709311249,39.92,139.93,139.81,6.9225]
[1750709312152,44.95933452,139.93,139.81,6.9225]
[1750709312349,7.1443,139.89,139.85,7.1458]
[1750709312551,39.9,139.88,139.81,6.9225]
[1750709312745,47.0448,139.88,139.81,6.9225]
[1750709313445,47.0448,139.88,139.85,7.1456]
[1750709313647,39.9,139.88,139.81,6.9225]
[1750709314145,39.9,139.88,139.81,2.4139]
[1750709314448,39.9,139.88,139.77,749.72214239]
[1750709314652,39.9,139.88,139.75,2.2677]
[1750709314853,7.1472,139.83,139.75,2.2677]
[1750709315147,39.9,139.82,139.79,7.1487]
[1750709315740,47.0477,139.82,139.79,7.1487]
[1750709316152,39.9,139.82,139.78,7.1494]
[1750709316450,7.1483,139.81,139.78,7.1494]
[1750709316651,39.9,139.82,139.79,7.1488]
[1750709316854,47.0479,139.82,139.79,7.1488]
[1750709317152,39.9,139.82,139.79,7.1488]
[1750709317347,39.9,139.82,139.75,2.2677]
[1750709317948,39.9,139.82,139.73,2.3423]
[1750709318150,39.9,139.82,139.7,39.9]
[1750709318459,7.1489,139.8,139.7,39.9]
[1750709319849,7.1489,139.8,139.77,7.1501]
[1750709320247,39.9,139.82,139.7,39.9]
[1750709320453,39.9,139.82,139.7,101.9]
[1750709320955,39.9,139.82,139.77,7.1498]
[1750709321151,39.9,139.82,139.7,39.9]
[1750709321347,39.9,139.82,139.69,4.6912]
[1750709321852,7.1504,139.77,139.69,4.6912]
[1750709322048,6.63153668,139.83,139.69,4.6912]
[1750709322049,39.92,139.76,139.69,4.6912]